{"text_format":"1","workbook":"xlsx","n_sheets":5,"sheets":["Index","General Info","Redemption Payment Status","Signatory","Taxonomy"],"not_rendered":{"charts":0,"images":1,"macros":1,"external_links":1,"defined_names":8,"comments":0,"pivot_tables":0},"unopened":[],"bounds":{"document_bytes":16777216,"sheet_cells":100000,"rows_first":2000,"rows_last":500,"rows_between":2000,"halvings":0,"cell_chars":16384,"cell_head_chars":4096},"cells_cut":0,"cells_raw":0,"read":"whole","date_system":"1900"}

{"sheet":"Index","index":0,"n_rows":49,"n_cols":10,"rows_kept":49,"cut":false,"hidden":false,"merged":[[22,3,22,9],[5,4,5,8],[6,5,6,8],[7,5,7,8],[8,5,8,8],[10,5,10,8],[13,3,13,9],[14,3,14,9],[18,3,18,9],[19,3,19,9],[20,3,20,9],[21,3,21,9],[15,3,15,9],[36,3,36,9],[23,3,23,9],[26,3,26,9],[27,4,27,8],[28,4,28,8],[29,4,29,8],[32,3,32,9],[33,3,33,9],[34,3,34,9],[35,3,35,9],[45,3,45,9],[46,3,46,9],[47,3,47,9],[48,3,48,9],[37,3,37,9],[38,3,38,9],[41,3,41,9],[42,3,42,9],[43,3,43,9],[44,3,44,9]]}
[]
[]
[]
[]
[]
[null,null,null,null," XBRL Excel Utility"]
[null,null,null,null,"1.","Overview"]
[null,null,null,null,"2.","Before you begin"]
[null,null,null,null,"3.","Index"]
[null,null,null,null,"4.","Steps for Filing Redemption payment status for centralized database Report"]
[null,null,null,null,"5.","Fill up the data in excel utility"]
[]
[]
[null,null,null,"1. Overview"]
[null,null,null,"The excel utility can be used for creating the XBRL/XML file for efiling of redemption payment status for centralized database Report"]
[null,null,null,"Redemption payment status for centralized database XBRL filing consists of two processes. Firstly generation of XBRL/XML file of redemption payment status for centralized databse Format, and upload of generated XBRL/XML file to BSE Listing Center Website (www.listing.bseindia.com) ."]
[]
[]
[null,null,null," 2.  Before you begin"]
[null,null,null,"1. The version of Microsoft Excel in your system should be Microsoft Office Excel 2007 and above."]
[null,null,null,"2. The system should have a file compression software to unzip excel utility file."]
[null,null,null,"3. Make sure that you have downloaded the latest Excel Utility."]
[null,null,null,"4. Make sure that you have downloaded the Chrome Browser to view report generated from Excel utility"]
[null,null,null,"5. Please enable the Macros (if disabled) as per instructions given in manual, so that all the functionalities of  Excel Utility works fine. Please first go through Enable Macro - Manual attached with zip file."]
[]
[]
[null,null,null,"3. Index "]
[null,null,null,1,"Details of general information about company",null,null,null,null,"General Info"]
[null,null,null,2,"Redemption Payment Status",null,null,null,null,"Redemption Payment Status"]
[null,null,null,3,"Signatory Details",null,null,null,null,"Signatory Details"]
[]
[]
[null,null,null,"4. Steps for Filing Redemption Payment status for centralized database Report"]
[null,null,null,"I.  Fill up the data: Navigate to each field of every section in the sheet to provide applicable data in correct format.  (Formats will get reflected while filling data.)  \n   - Use paste special command to paste data from other sheet."]
[null,null,null,"II. Validating Sheets:  Click on the ''Validate\" button to ensure that the sheet has been properly filled and also data has been furnished in proper format. If there are some errors on the sheet, excel utility will prompt you about the same."]
[null,null,null,"III. Validate All Sheets:  Click on the ''Home\" button. And then click on \"Validate All Sheet\" button to ensure that all sheets has been properly filled and validated successfully. If there are some errors on the sheet, excel utility will prompt you about the same and stop validation at the same time. After correction, once again follow the same procedure to validate all sheets."]
[null,null,null,"Excel Utility will not allow you to generate XBRL/XML until you rectify all errors. "]
[null,null,null,"IV. Generate XML :   Excel Utility will not allow you to generate XBRL/XML unless successful validation of all sheet is completed. Now click on 'Generate XML'' to generate XBRL/XML file. \n    - Save the XBRL/XML file in your desired folder in local system."]
[null,null,null,"V. Generate Report :   Excel Utility will allow you to generate Report. Now click on 'Generate Report'' to generate html report.   \n     - Save the HTML Report file in your desired folder in local system.     \n     - To view HTML Report open \"Chrome Web Browser\" . \n     - To print report in PDF Format, Click on print button and save as PDF. "]
[]
[]
[null,null,null,"5. Fill up the data in excel utility"]
[null,null,null,"1. Cells with red fonts indicate mandatory fields. "]
[null,null,null,"2. If mandatory field is left empty, then Utility will not allow you to proceed further for generating XML."]
[null,null,null,"3. You are not allowed to enter data in the Grey Cells."]
[null,null,null,"4. If fields are not applicable to your company then leave it blank. Do not insert Zero unless it is a mandatory field."]
[null,null,null,"5. Data provided must be in correct format, otherwise Utility will not allow you to proceed further for generating XML."]
[null,null,null,"6. Select data from \"Dropdown list\" wherever applicable. "]
[null,null,null,"7. Adding Notes:  Click on \"Add Notes\" button to add notes "]

{"sheet":"General Info","index":1,"n_rows":13,"n_cols":39,"rows_kept":13,"cut":false,"hidden":false,"merged":[[7,3,7,6],[8,5,11,6]]}
[null,null,null,null,null,null,null,null,"01","02","03","04","05","06","07","08","09",10,{"$f":"+R1+1","v":11},{"$f":"+S1+1","v":12},13,14,15,16,17,18,19,20,21,22,23,24,25,26,27,{"$f":"+AI1+1","v":28},29,30,31]
[null,null,null,null,null,null,null,null,"01","02","03","04","05","06","07","08","09",10,{"$f":"+R2+1","v":11},12]
[null,null,null,null,null,null,null,null,2021]
[null,null,null,null,null,null,null,null,2022]
[null,null,null,null,null,null,null,null,2023]
[]
[]
[null,null,null,"General information about company"]
[null,null,null,"Name of the listed entity","Muthoottu Mini Financiers Limited"]
[null,null,null,"BSE Scrip Code","934980"]
[null,null,null,"NSE Symbol"]
[null,null,null,"MSEI Symbol"]
[null,null,null,"Reporting Date",15,"02",2023]

{"sheet":"Redemption Payment Status","index":2,"n_rows":14,"n_cols":32,"rows_kept":14,"cut":false,"hidden":false,"merged":[[7,3,7,29],[8,3,8,29],[11,3,11,29]]}
[null,null,null,null,null,null,null,null,2,null,null,null,null,null,null,null,null,null,null,null,null,null,null,"Monthly",null,null,null,"Lot Basis",null,"Full","By Face Value Redemption","Call"]
[null,null,null,null,null,null,null,null,null,null,null,null,null,null,null,null,null,null,null,null,null,null,null,"Quarterly",null,null,null,"Pro-rata basis",null,"Partial","By Quantity Redemption","Put"]
[null,null,null,null,null,null,null,null,null,null,null,null,null,null,null,null,null,null,null,null,null,null,null,"Half Yearly",null,null,null,null,null,null,null,"Premature"]
[null,null,null,null,null,null,null,null,null,null,null,null,null,null,null,null,null,null,null,null,null,null,null,"Yearly",null,null,null,null,null,null,null,"Redemption"]
[null,null,null,null,null,null,null,null,null,null,null,null,null,null,null,null,null,null,null,null,null,null,null,"Others",null,null,null,null,null,null,null,"Maturity"]
[null,null,null,null,null,null,null,null,null,null,null,null,null,null,null,null,null,null,null,null,null,null,null,null,null,null,null,null,null,null,null,"Buyback"]
[null,null,null,null,null,null,null,null,null,null,null,null,null,null,null,null,null,null,null,null,null,null,null,null,null,null,null,null,null,null,null,"conversion"]
[null,null,null,"Payment Status",null,null,null,null,null,null,null,null,null,null,null,null,null,null,null,null,null,null,null,null,null,null,null,null,null,null,null,"Others"]
[null,null,null,"Details Of Redemption Payments"]
[null,null,null,"Sr. No.","ISIN","Series ","Securities Description","Prospectus / Disclosure Document Date","Issue Size \n(Rs. In lakhs)","No. of instrument","Face Value\n(In Rs.)","Rate of Interest","Record Date","Change in Record Date\n(Previous, if any)","Frequency","Specify other Frequency","Type of Redemption","If Partial Redemption, then","If Redemption is based on Quantity, specify whether","Reason for redemption","Specify if redemption by other","Redemption Date due to PUT option (if any)","Redemption Date due to CALL option (if any)","Quantity Redeemed (No. of NCDs)","Due date for Redemption/ Maturity","Actual Date for Redemption","Amount Redeemed (Rs. In lakhs)","Outstanding Amount \n(Rs. In lakhs)","Date of previous redemption (Part Redemption), if applicable","Date of last Interest Payment"]
[]
[]
[null,null,null,1,"INE101Q07870","XIII","Secured NCD","11-01-2021",2124.81,212481,1000,9.5,"02-02-2023",null,"Monthly",null,"Full",null,null,"Maturity",null,"","",null,"14-02-2023","14-02-2023",2132.5500000000002,0,null,"01-02-2023"]
[null,null,null,2,"INE101Q07888","XIII","Secured NCD","11-01-2021",4504.47,450447,1000,9.5399999999999991,"02-02-2023",null,"Others","Cumulative","Full",null,null,"Maturity",null,"","",null,"14-02-2023","14-02-2023",5405.36,0,null,"14-02-2023"]

{"sheet":"Signatory","index":3,"n_rows":12,"n_cols":5,"rows_kept":12,"cut":false,"hidden":false,"merged":[[7,3,7,4]]}
[]
[]
[]
[]
[]
[]
[]
[null,null,null,"Signatory"]
[null,null,null,"Name of signatory","Mathew Muthoottu"]
[null,null,null,"Designation of person","Managing Director"]
[null,null,null,"Place","Kochi"]
[null,null,null,"Date","15-02-2023"]

{"sheet":"Taxonomy","index":4,"n_rows":36,"n_cols":5,"rows_kept":36,"cut":false,"hidden":true,"merged":[]}
["element","label","type","periodType","validation"]
["NameOfTheCompany","Name of the listed entity","xbrli:stringItemType","instant","This is mandatory field. Please enter company name."]
["ScripCode","BSE Scrip Code","in-capmkt-types:ScripCode","instant","This is a mandatory field. Should be valid SCRIP CODE  as per BSE Scrip Code Format. "]
["NSESymbol","NSE Symbol","xbrli:stringItemType","instant"]
["MSEISymbol","MSEI Symbol","xbrli:stringItemType","instant"]
["DateOfReport","Reporting Date","xbrli:dateItemType","instant","1) This is mandatory field.\n2) Please enter date in 'DD-MM-YYYY' format\n3) Date should be current date."]
["ISIN","ISIN","in-capmkt-types:ISINNumber","instant"]
["Series","Series ","xbrli:stringItemType","instant"]
["SecuritiesDescription","Securities Description","xbrli:stringItemType","instant"]
["DateOfProspectusOrDisclosureDocument","Prospectus / Disclosure Document Date","xbrli:dateItemType","duration","1) This is mandatory field.\n2) Please enter date in 'DD-MM-YYYY' format\n3) Date should not be greater than the system date."]
["IssueSize","Issue Size \n(Rs. In lakhs)","xbrli:monetaryItemType","duration"]
["NumberOfInstrument","No. of instrument","xbrli:sharesItemType","instant"]
["FaceValue","Face Value\n(In Rs.)","num:perShareItemType","duration"]
["RateOfInterest","Rate of Interest","num:percentItemType","duration"]
["RecordDate","Record Date","xbrli:dateItemType","duration","1) This is mandatory field.\n2) Please enter date in 'DD-MM-YYYY' format"]
["ChangeInRecordDate","Change in Record Date\n(Previous, if any)","xbrli:dateItemType","duration"]
["FrequencyOfInterestPayments","Frequency","xbrli:stringItemType","instant","1) This is mandatory field.\n2) Please select from drop down only."]
["TypeOfRedemption","Type of Redemption","in-capmkt-types:TypeOfRedemption","duration","1) This is mandatory field.\n2) Please select from drop down only."]
["TypeOfPartialRedemption","If Partial Redemption, then","in-capmkt-types:TypeOfPartialRedemption","duration","1) Please select value from the drop-down.\n2) This mandatory field if  \"type of Redemption\" is \"partial\"."]
["TypeOfRedemptionBasedOnQuantity","If Redemption is based on Quantity, specify whether","in-capmkt-types:TypeOfRedemptionBasedOnQuantity","duration","1) Please select value from the drop-down.\n2)  This mandatory field if \"If Partial Redemption, then\" is \"By Qty Redemption\""]
["ReasonForRedemption","Reason for redemption","xbrli:stringItemType","instant","Please select value from the drop-down."]
["DetailsOfOtherReasonForRedemption","Specify if redemption by other","xbrli:stringItemType","instant"]
["RedemptionDateDueToPUTOption","Redemption Date due to PUT option (if any)","xbrli:dateItemType","duration","1) This is mandatory field if selected 'Put' in reason for redemption.\n2) Please enter date in 'DD-MM-YYYY' format"]
["RedemptionDateDueToCALLOption","Redemption Date due to CALL option (if any)","xbrli:dateItemType","duration","1) This is mandatory field if selected 'Call' in reason for redemption.\n2) Please enter date in 'DD-MM-YYYY' format"]
["QuantityRedeemed","Quantity Redeemed (No. of NCDs)","xbrli:sharesItemType","instant","This mandatory field if  \"If Partial Redemption, then\" is \"By Qty Redemption\""]
["DueDateForRedemptionOrMaturity","Due date for Redemption/ Maturity","xbrli:dateItemType","duration","1) This is mandatory field.\n2) Please enter date in 'DD-MM-YYYY' format"]
["ActualDateOfRedemption","Actual Date for Redemption","xbrli:dateItemType","duration","1) This is mandatory field.\n2) Please enter date in 'DD-MM-YYYY' format"]
["AmountRedeemed","Amount Redeemed (Rs. In lakhs)","xbrli:monetaryItemType","duration"]
["OutstandingAmount","Outstanding Amount \n(Rs. In lakhs)","xbrli:monetaryItemType","duration"]
["DateOfPreviousRedemptionPartRedemption","Date of previous redemption (Part Redemption), if applicable","xbrli:dateItemType","duration"]
["DateOfLastInterestPayment","Date of last Interest Payment","xbrli:dateItemType","duration","1) This is mandatory field.\n2) Please enter date in 'DD-MM-YYYY' format"]
["NameOfSignatory","Name of signatory","xbrli:stringItemType","instant"]
["DesignationOfSignatoryPerson","Designation of person","xbrli:stringItemType","instant"]
["PlaceOfSignatory","Place","xbrli:stringItemType","instant"]
["DateOfSignatory","Date","xbrli:dateItemType","duration","1) This is mandatory field.\n2) Please enter date in 'DD-MM-YYYY' format\n3) Date should be current date."]
["DetailsOfOtherFrequency","Specify other Frequency","xbrli:stringItemType","instant"]